bitfinex/quotes_ETHUSD_20241003
["timestamp","ask_amount","ask_price","bid_price","bid_amount"]
[1727959572843,0.00810782,2357.0,2356.7,4.24312]
[1727959573073,0.80600782,2357.2,2356.8,4.24304]
[1727959573252,0.00810782,2357.0,2356.9,4.24286]
[1727959573456,0.00810782,2357.0,2356.8,4.24304]
[1727959573852,0.00810782,2357.0,2356.6,4.24326]
[1727959574263,0.5129586,2357.0,2356.7,4.24321]
[1727959574478,0.5129586,2357.0,2356.5,4.24354]
[1727959574653,0.00810782,2356.8,2356.6,4.24339]
[1727959574859,1.29244586,2356.9,2356.6,4.24339]
[1727959575167,0.00810782,2356.7,2356.6,4.24339]
[1727959575538,0.00810782,2356.7,2356.5,8.48702]
[1727959575773,0.00810782,2356.7,2356.6,4.2434]
[1727959576137,0.00810782,2356.7,2356.6,4.32826804]
[1727959576389,0.00810782,2357.0,2356.7,4.2432]
[1727959576685,0.00810782,2356.8,2356.6,4.24325]
[1727959576888,0.00810782,2356.8,2356.7,4.24322]
[1727959577038,0.00810782,2357.0,2356.9,4.24286]
[1727959578599,0.00810782,2357.0,2356.6,4.24326]
[1727959578893,0.00810782,2356.7,2356.3,0.7976]
[1727959579054,0.00810782,2356.5,2356.0,0.7976]
[1727959579379,0.00810782,2356.5,2356.4,4.24376]
[1727959579586,0.00810782,2356.7,2356.5,4.24357]
[1727959580093,0.5147096,2356.7,2356.5,4.24357]
[1727959580541,0.00810782,2356.7,2356.5,4.24357]
[1727959581354,0.00810782,2356.7,2356.6,4.2434]
[1727959581563,0.00810782,2357.0,2356.7,4.24318]
[1727959582041,0.5082716,2357.0,2356.7,4.24318]
[1727959582385,0.36930692,2356.9,2356.8,4.24304]
[1727959582590,0.00810782,2357.0,2356.9,4.24286]
[1727959582746,0.37755013,2357.0,2356.9,4.24286]
[1727959583647,0.37755013,2357.0,2356.8,4.24304]
[1727959583843,0.36944231,2356.9,2356.8,4.24304]
[1727959584593,0.00810782,2357.0,2356.7,4.24322]
[1727959584594,0.00810782,2357.2,2357.0,4.24253]
[1727959584746,0.96121672,2357.1,2357.0,4.24253]
[1727959584948,0.36969874,2357.1,2357.0,4.24253]
[1727959585164,0.00810782,2357.2,2357.1,4.2425]
[1727959585499,0.9228,2357.4,2357.3,4.24214]
[1727959585500,0.1251,2357.4,2357.3,4.24214]
[1727959585658,0.1251,2357.4,2357.3,4.28581476]
[1727959585860,0.1251,2357.4,2357.3,4.326971]
[1727959586059,0.1251,2357.4,2357.3,5.3111735]
[1727959586922,0.1251,2357.4,2357.3,6.0993735]
[1727959587564,0.1251,2357.4,2357.3,5.03034]
[1727959587867,0.1251,2357.4,2357.3,4.32697041]
[1727959588072,0.1251,2357.4,2357.3,4.24214]
[1727959588299,0.1251,2357.4,2357.3,4.3269672]
[1727959589294,0.1251,2357.4,2357.3,8.09206002]
[1727959589463,0.1251,2357.4,2357.3,9.32549302]
[1727959589665,0.1251,2357.4,2357.3,9.240673]
[1727959589897,0.1251,2357.4,2357.3,9.790673]
[1727959590112,0.1251,2357.4,2357.3,15.39046678]
[1727959591098,0.1251,2357.4,2357.3,14.80558607]
[1727959591607,0.1251,2357.4,2357.3,9.790673]
[1727959592260,0.1251,2357.4,2357.3,15.39046678]
[1727959593122,0.1251,2357.4,2357.3,9.790673]
[1727959593334,0.1251,2357.4,2357.3,4.24214]
[1727959593481,0.1251,2357.4,2357.2,4.24227]
[1727959593938,0.1251,2357.4,2356.8,5.05192]
[1727959593939,0.13320782,2357.4,2356.9,4.24281]
[1727959594098,4.24242,2357.2,2356.6,4.24336]
[1727959594437,0.8152,2357.0,2356.6,4.24336]
[1727959594577,0.00810782,2356.9,2356.8,4.24288]
[1727959594779,0.8152,2357.0,2356.7,4.24318]
[1727959594984,0.8152,2357.0,2356.7,8.48636]
[1727959595227,0.8152,2357.0,2356.6,4.24338]
[1727959595431,0.8152,2357.0,2356.5,4.24357]
[1727959595432,0.51388582,2356.9,2356.5,4.24357]
[1727959595584,0.00810782,2356.9,2356.7,4.2432]
[1727959595780,0.00810782,2356.9,2356.5,4.24357]
[1727959595781,0.00810782,2356.9,2356.6,4.24339]
[1727959595998,0.00810782,2356.9,2356.5,4.24357]
[1727959596194,0.00810782,2356.9,2356.1,0.7886]
[1727959596424,4.24308,2356.8,2356.3,4.2438]
[1727959596639,0.7536,2356.6,2356.1,8.48834]
[1727959596783,4.24361,2356.5,2356.1,4.24416]
[1727959597128,0.00810782,2356.3,2356.1,4.24416]
[1727959597313,0.00810782,2356.3,2355.8,4.24483]
[1727959597526,0.00810782,2356.3,2356.0,4.24445]
[1727959597527,0.7536,2356.2,2356.0,4.24445]
[1727959598236,0.7536,2356.2,2355.5,4.24523]
[1727959598437,0.7536,2355.8,2355.5,4.24523]
[1727959598584,0.7536,2355.8,2355.1,0.7982]
[1727959598585,0.00810782,2355.6,2355.1,0.7982]
[1727959598785,0.00810782,2355.6,2355.2,4.33073551]
[1727959599103,0.00810782,2355.6,2355.4,4.24555]
[1727959599493,0.00810782,2355.6,2355.4,8.4911]
[1727959599795,0.00810782,2355.6,2355.0,4.24617]
[1727959599995,0.00810782,2355.3,2354.7,5.07641]
[1727959600199,0.00810782,2355.3,2355.2,4.24592]
[1727959600421,0.00810782,2355.4,2355.3,4.24574]
[1727959600714,0.7711,2355.5,2355.3,4.24574]
[1727959601086,0.7711,2355.5,2355.3,8.4914]
[1727959601295,0.7711,2355.5,2355.3,4.24566]
[1727959601604,0.76310782,2355.8,2355.4,4.24546]
[1727959601987,0.76310782,2355.8,2355.5,4.24537]
[1727959602183,0.76310782,2355.8,2355.0,3.0]
[1727959602435,0.755,2355.8,2355.6,4.24511]
[1727959602929,0.00810782,2356.0,2355.7,4.24502]
[1727959603231,0.00810782,2356.0,2355.2,5.04751]
[1727959603535,0.00810782,2356.0,2355.4,4.24546]
[1727959603536,0.00810782,2355.8,2355.4,4.24546]
[1727959603855,0.00810782,2355.8,2355.5,4.24527]
[1727959604128,4.24502,2355.7,2355.2,4.24576]
[1727959604283,0.00810782,2355.5,2355.3,4.24574]
[1727959604488,0.00810782,2355.8,2355.4,4.24556]
[1727959604688,0.00810782,2355.8,2355.4,4.24552]
[1727959604889,0.00810782,2355.5,2355.4,4.24552]
[1727959605115,0.00810782,2355.8,2355.5,4.24538]
[1727959605530,0.00810782,2355.8,2355.4,4.24555]
[1727959606026,0.00810782,2355.8,2355.5,4.24525]
[1727959606690,0.00810782,2355.8,2355.6,4.24512]
[1727959606894,0.00810782,2356.0,2355.8,4.24484]
[1727959607217,0.00810782,2356.0,2355.8,4.32972018]
[1727959607402,1.23455887,2356.2,2355.9,4.24466]
[1727959607621,0.00810782,2356.1,2356.0,4.24445]
[1727959607830,0.00810782,2356.1,2356.0,4.32933485]
[1727959608035,0.44385887,2356.2,2356.0,4.32933485]
[1727959608036,0.44385887,2356.2,2356.1,4.2443]
[1727959608220,0.00810782,2356.3,2356.2,4.24412]
[1727959608428,0.00810782,2356.3,2356.2,4.32899546]
[1727959608671,0.44379666,2356.4,2356.3,4.24394]
[1727959608810,0.79880782,2356.5,2356.3,4.24394]
[1727959609271,4.2439,2356.4,2355.9,4.2445]
[1727959609437,4.2439,2356.4,2355.9,4.24457]
[1727959609622,0.50427078,2356.3,2355.9,4.24457]
[1727959609833,0.00810782,2356.0,2355.9,4.24457]
[1727959610469,0.00810782,2356.0,2355.7,4.24484]
[1727959610619,0.00810782,2356.0,2355.9,4.24466]
[1727959611379,0.79880782,2356.5,2355.9,0.08488873]
[1727959611535,0.79880782,2356.5,2355.9,5.03211]
[1727959611858,0.8227,2356.2,2355.7,4.24488]
[1727959612015,0.00810782,2356.0,2355.7,4.24488]
[1727959612212,5.06691,2356.2,2355.5,5.03283]
[1727959612213,0.00810782,2355.8,2355.6,4.24517]
[1727959613055,0.00810782,2355.8,2355.7,4.24502]
[1727959614634,0.8224,2355.7,2355.5,4.24528]
[1727959614970,0.506691,2356.1,2355.7,4.24502]
[1727959614971,0.8224,2356.0,2355.7,4.24502]
[1727959615183,2.1041651,2356.0,2355.8,4.24473]
[1727959615342,0.83050782,2356.0,2355.7,4.24493]
[1727959615545,0.00810782,2355.8,2355.6,4.24516]
[1727959615765,0.00810782,2355.8,2355.4,4.24543]
[1727959616076,0.00810782,2355.5,2355.4,4.24543]
[1727959617053,0.00810782,2355.5,2355.4,4.33034135]
[1727959617259,0.00810782,2355.8,2355.6,4.24505]
[1727959617464,0.00810782,2355.8,2355.7,4.24502]
[1727959619433,0.78130782,2356.0,2355.7,4.24502]
[1727959619629,0.00810782,2355.8,2355.7,4.24502]
[1727959620375,0.00810782,2355.8,2355.6,4.24505]
[1727959620578,0.00810782,2355.8,2355.3,0.815]
[1727959620579,0.7722,2355.7,2355.3,4.24564]
[1727959620797,0.7722,2355.7,2355.5,4.24521]
[1727959621081,0.82480782,2356.0,2355.6,0.08490054]
[1727959621386,0.82480782,2356.0,2355.8,4.24468]
[1727959621890,0.00810782,2356.0,2355.9,4.24466]
[1727959622038,0.00810782,2356.3,2356.1,4.2443]
[1727959622463,0.00810782,2356.3,2356.2,4.24412]
[1727959623072,0.7632,2356.4,2356.2,4.24412]
[1727959623401,0.00810782,2356.3,2356.2,4.24412]
[1727959623989,0.00810782,2356.5,2356.4,4.24376]
[1727959624664,0.44379394,2356.7,2356.4,4.32862746]
[1727959624868,0.44379394,2356.7,2356.4,4.24376]
[1727959625069,0.00810782,2356.8,2356.6,4.24337]
[1727959625279,0.00810782,2356.8,2356.4,0.0848652]
[1727959625280,0.45187645,2356.8,2356.7,4.24322]
[1727959625802,0.45187645,2356.8,2356.6,4.24337]
[1727959625958,0.44376863,2356.8,2356.7,4.32807889]
[1727959626156,0.00810782,2357.2,2357.0,4.24257]
[1727959626157,0.81550782,2357.2,2357.0,4.24257]
[1727959626794,0.81550782,2357.2,2357.0,8.48518]
[1727959626957,0.81550782,2357.2,2357.0,8.48515]
[1727959627154,0.44376656,2357.3,2357.0,8.48515]
[1727959627155,0.44376656,2357.3,2357.1,4.2425]
[1727959627355,0.00810782,2357.2,2357.1,4.2425]
[1727959627596,0.44376656,2357.3,2357.1,4.2425]
[1727959627597,0.44376656,2357.3,2357.2,4.24232]
[1727959628094,0.13320782,2357.4,2357.1,4.24247]
[1727959628303,4.24223,2357.3,2356.6,4.24327]
[1727959628607,0.00810782,2357.0,2356.9,4.24285]
[1727959628761,0.00810782,2357.0,2356.9,4.32770411]
[1727959629107,0.1251,2357.4,2356.9,4.32770411]
[1727959629108,0.13320782,2357.4,2357.3,4.24214]
[1727959629254,0.13320782,2357.4,2357.2,4.24227]
[1727959629456,0.7878,2357.3,2356.9,4.24273]
[1727959629658,0.00810782,2357.1,2357.0,4.24267]
[1727959630007,4.25077782,2357.1,2356.6,4.24332]
[1727959630218,4.75874878,2357.2,2356.7,4.24313]
[1727959630219,0.00810782,2356.8,2356.7,4.24313]
[1727959631192,0.55465488,2357.1,2356.7,4.24313]
[1727959631193,0.00810782,2357.0,2356.7,4.24313]
[1727959631423,0.00810782,2357.0,2356.5,4.24347]
[1727959631620,0.51630878,2357.2,2356.6,4.24336]
[1727959631621,4.24266,2357.1,2356.6,4.24336]
[1727959631783,0.47589688,2357.0,2356.7,4.24319]
[1727959632100,0.00810782,2356.9,2356.7,4.24317]
[1727959633591,0.7922,2356.8,2356.7,4.24322]
[1727959633978,4.24258,2357.1,2356.7,4.24322]
[1727959633979,0.00810782,2357.1,2356.9,4.24273]
[1727959634121,0.00810782,2357.1,2356.7,4.24312]
[1727959634122,4.25063782,2357.1,2356.7,4.24312]
[1727959634295,0.00810782,2356.9,2356.7,4.24312]
[1727959634629,0.00810782,2356.9,2356.8,4.24304]
[1727959635333,0.00810782,2356.9,2356.5,4.24345]
[1727959635547,0.00810782,2356.9,2356.3,3.0]
[1727959635548,0.00810782,2356.9,2356.7,4.24306]
[1727959635696,0.00810782,2356.9,2356.8,4.24304]
[1727959636032,0.7669,2357.0,2356.5,4.24357]
[1727959636033,0.00810782,2357.1,2356.9,4.24281]
[1727959636240,0.00810782,2357.1,2356.9,8.48559]
[1727959636401,0.00810782,2357.1,2356.9,4.24278]
[1727959636737,0.00810782,2357.1,2356.8,4.24293]
[1727959636919,0.00810782,2357.1,2357.0,4.24268]
[1727959637840,0.00810782,2357.2,2357.1,4.2425]
[1727959638128,0.13320782,2357.4,2357.2,4.24215]
[1727959638289,0.13320782,2357.4,2357.3,4.24214]
[1727959638693,0.13320782,2357.4,2356.7,5.07459]
[1727959638694,0.56789359,2357.4,2356.7,4.24309]
[1727959638925,0.76240782,2357.2,2356.6,4.24332]
[1727959639132,0.76240782,2357.2,2356.7,4.24315]
[1727959639133,0.00810782,2356.8,2356.7,4.24315]
[1727959639341,0.00810782,2356.8,2356.6,4.24332]
[1727959639830,0.00810782,2356.8,2356.6,4.2433]
[1727959640552,0.8152,2356.7,2355.9,1.68812349]
[1727959640835,0.8152,2356.7,2356.2,4.24397]
[1727959640836,0.00810782,2356.3,2356.2,4.24397]
[1727959641738,0.00810782,2356.5,2356.4,4.24376]
[1727959641940,0.00810782,2356.5,2356.4,5.0967352]
[1727959642140,0.00810782,2356.8,2356.7,4.24322]
[1727959642643,4.25117782,2356.8,2356.4,4.24366]
[1727959642793,4.25169782,2356.5,2356.1,4.24421]
[1727959642998,0.00810782,2356.5,2356.2,4.2441]
[1727959643201,0.00810782,2356.3,2356.2,4.2441]
[1727959644246,0.00810782,2356.5,2356.2,4.2441]
[1727959644450,0.00810782,2356.5,2356.4,4.24376]
[1727959644731,0.00810782,2356.8,2356.6,4.2434]
[1727959645043,0.00810782,2356.8,2356.7,4.24322]
[1727959645240,0.00810782,2356.8,2356.5,4.24344]
[1727959645547,0.00810782,2356.8,2356.4,4.24366]
[1727959645747,0.00810782,2356.8,2356.5,4.2435]
[1727959646041,0.5093466,2356.8,2356.5,4.2435]
[1727959646246,4.7524566,2356.8,2356.4,4.24366]
[1727959646441,0.00810782,2356.6,2356.4,4.24366]
[1727959647201,0.5093466,2356.8,2356.5,4.24358]
[1727959647401,0.00810782,2356.6,2356.5,4.24358]
[1727959647600,0.00810782,2356.6,2356.5,5.092304]
[1727959647839,0.00810782,2356.8,2356.7,4.24322]
[1727959649107,4.25122782,2356.8,2356.4,4.24368]
[1727959649359,0.00810782,2356.6,2356.4,4.24368]
[1727959650257,0.00810782,2356.6,2356.1,3.7729]
[1727959650258,0.79720782,2356.6,2356.1,4.24425]
[1727959650453,5.53655178,2356.6,2356.2,4.24401]
[1727959650612,0.00810782,2356.4,2356.2,4.24401]
[1727959650808,0.00810782,2356.4,2355.9,0.7729]
[1727959651013,0.00810782,2356.4,2356.1,4.24425]
[1727959651214,0.00810782,2356.4,2356.2,4.2441]
[1727959651723,0.7891,2356.2,2355.9,8.48907]
[1727959651952,0.00810782,2356.1,2356.0,4.24448]
[1727959652113,0.00810782,2356.1,2355.7,4.24488]
[1727959652316,0.7891,2355.7,2355.2,0.7729]
[1727959652656,0.00810782,2355.5,2355.4,4.24547]
[1727959654467,0.00810782,2355.5,2355.1,4.24608]
[1727959654468,0.37763225,2355.5,2355.1,4.24608]
[1727959654649,0.37763225,2355.5,2354.7,0.7632]
[1727959654650,0.76240782,2355.2,2354.8,4.24654]
[1727959654817,0.76240782,2355.2,2354.9,4.24644]
[1727959655329,0.76240782,2355.2,2354.9,8.49276]
[1727959655330,0.00810782,2355.0,2354.9,8.49276]
[1727959655667,0.00810782,2355.3,2355.2,4.24592]
[1727959656170,0.00810782,2355.3,2355.2,0.08491542]
[1727959656317,0.00810782,2355.5,2355.4,4.24556]
[1727959656565,0.00810782,2355.8,2355.7,4.24502]
[1727959656966,0.77680782,2356.1,2355.9,4.24448]
[1727959657165,0.7687,2356.3,2355.9,4.24448]
[1727959657410,0.36913577,2356.2,2355.9,4.24448]
[1727959657611,0.7687,2356.3,2355.9,4.24448]
[1727959657825,0.7687,2356.3,2356.0,4.24434]
[1727959658008,0.7687,2356.3,2356.0,8.48872]
[1727959658325,0.36913581,2356.1,2356.0,4.24434]
[1727959658512,0.36912625,2356.2,2355.9,4.24465]
[1727959658821,5.01276,2356.3,2355.8,4.24481]
[1727959659026,0.7687,2356.3,2355.9,4.24452]
[1727959659813,0.7687,2356.3,2356.1,4.24419]
[1727959659814,0.00810782,2356.3,2356.1,4.24419]
[1727959660022,0.00810782,2356.3,2356.2,4.24412]
[1727959660236,0.00810782,2356.3,2356.2,4.31965578]
[1727959660449,5.04663,2356.9,2356.5,4.24358]
[1727959660450,0.00810782,2356.6,2356.5,4.24358]
[1727959660783,0.00810782,2356.9,2356.6,4.2434]
[1727959661033,0.7935,2357.1,2356.8,4.24304]
[1727959661329,0.7935,2357.1,2356.7,4.32797257]
[1727959661499,4.68604782,2357.2,2356.7,4.32797257]
[1727959661500,0.44364782,2357.2,2356.9,4.24277]
[1727959661898,0.00810782,2357.0,2356.8,4.24296]
[1727959662539,0.00810782,2357.0,2356.8,4.24295]
[1727959662732,0.00810782,2357.0,2356.9,4.24286]
[1727959662933,0.44364782,2357.2,2356.8,4.24301]
[1727959662934,0.45175564,2357.2,2356.8,4.24301]
[1727959663085,0.00810782,2356.9,2356.8,4.24301]
[1727959663486,0.45175564,2357.2,2357.1,4.2425]
[1727959663728,0.8095423,2357.2,2357.1,4.2425]
[1727959664023,0.1251,2357.4,2357.3,4.24214]
[1727959664335,0.1251,2357.4,2357.3,4.32696947]
[1727959664830,0.1251,2357.4,2357.3,4.24214]
[1727959665604,0.1251,2357.4,2357.3,4.32697582]
[1727959665815,0.1251,2357.4,2357.3,5.27742099]
[1727959666884,0.1251,2357.4,2357.3,5.19258517]
[1727959667121,0.1251,2357.4,2357.3,4.24214]
[1727959667517,0.1251,2357.4,2357.0,0.7997]
[1727959667721,0.1251,2357.4,2356.8,8.48584]
[1727959667722,4.36706,2357.4,2356.8,8.48584]
[1727959667938,4.36706,2357.4,2356.8,4.24291]
[1727959667939,0.00810782,2357.0,2356.8,4.24291]
[1727959668090,0.00810782,2357.0,2356.7,4.24321]
[1727959668431,0.00810782,2357.0,2356.3,4.24381]
[1727959668432,0.00810782,2356.8,2356.3,4.24379]
[1727959668650,0.00810782,2356.8,2356.7,4.24322]
[1727959668925,0.00810782,2357.0,2356.8,4.24296]
[1727959669336,0.00810782,2357.0,2356.9,4.24286]
[1727959669625,0.00810782,2357.3,2357.1,4.2425]
[1727959669787,0.1251,2357.4,2357.1,4.2425]
[1727959669788,0.1251,2357.4,2357.2,4.24232]
[1727959669990,0.1251,2357.4,2357.2,4.3271576]
[1727959670188,0.1251,2357.4,2357.3,4.24214]
[1727959671133,0.1251,2357.4,2357.3,4.32697299]
[1727959671335,0.1251,2357.4,2357.3,5.18390229]
[1727959671532,0.1251,2357.4,2357.3,5.0990693]
[1727959671981,0.1251,2357.4,2357.3,5.18390261]
[1727959672458,0.1251,2357.4,2356.9,0.848582]
[1727959672652,0.1251,2357.4,2357.2,4.24231]
[1727959672845,0.00810782,2357.3,2357.2,4.24231]
[1727959674278,0.1251,2357.4,2357.3,4.24214]
[1727959674579,0.1251,2357.4,2357.3,5.04214]
[1727959674782,0.1251,2357.4,2357.3,4.24214]
[1727959674964,0.1251,2357.4,2357.3,5.170585]
[1727959676068,0.1251,2357.4,2357.3,5.25541337]
[1727959676744,3.0,2358.3,2357.4,4.24194]
[1727959676948,3.0,2358.3,2357.3,1.01327337]
[1727959676949,4.60597005,2358.2,2357.5,4.32648117]
[1727959677272,4.2409,2358.0,2357.6,4.24156]
[1727959678133,4.24115,2357.9,2357.4,4.24187]
[1727959678330,4.24115,2357.9,2357.4,4.24192]
[1727959678331,5.01491307,2357.9,2357.4,4.24192]
[1727959678549,4.665365,2357.8,2357.4,4.24192]
[1727959678755,4.24146,2357.7,2357.3,4.24203]
[1727959678957,4.665365,2357.8,2357.3,4.24203]
[1727959679163,0.424115,2357.8,2357.1,5.04238]
[1727959679345,4.24152,2357.7,2357.3,4.24207]
[1727959679739,0.00810782,2357.5,2357.3,4.24207]
[1727959680459,0.6769,2357.6,2357.3,4.2421]
[1727959680460,0.57824238,2357.6,2357.3,4.2421]
[1727959681276,0.57824238,2357.6,2357.2,4.24229]
[1727959681277,5.72598462,2357.6,2357.2,4.24229]
[1727959681488,1.48436462,2357.6,2357.4,4.24194]
[1727959682781,0.5863502,2357.6,2357.2,4.24228]
[1727959682963,4.8279702,2357.6,2357.2,4.24228]
[1727959683176,5.73491122,2357.6,2357.2,4.24228]
[1727959683479,0.5783,2357.2,2356.9,4.24272]
[1727959683681,0.58640782,2357.2,2356.9,4.24272]
[1727959683981,0.58640782,2357.2,2356.7,4.24311]
[1727959684142,0.58640782,2357.2,2357.0,4.24256]
[1727959684342,0.58640782,2357.2,2357.0,4.24253]
[1727959684678,0.00810782,2357.5,2357.2,4.24224]
[1727959684884,0.0038409,2357.5,2357.0,4.24258]
[1727959685096,0.5783,2357.4,2356.4,0.7609]
[1727959685246,3.0,2357.7,2356.4,0.7609]
[1727959685247,0.5783,2357.0,2356.4,5.00465]
[1727959685446,0.5783,2357.0,2356.6,4.24331]
[1727959685775,0.5783,2357.0,2356.4,5.00456]
[1727959685776,4.24297,2356.9,2356.4,4.24367]
[1727959686092,4.82191,2356.5,2355.8,5.05502]
[1727959686290,10.31901407,2356.5,2356.1,4.24428]
[1727959686491,10.31901407,2356.5,2356.2,4.24411]
[1727959686492,0.5783,2356.5,2356.2,4.24411]
[1727959686729,0.5783,2356.5,2356.0,4.24431]
[1727959686841,0.5783,2356.5,2356.1,4.24422]
[1727959687267,6.49971907,2356.5,2355.5,0.8103]
[1727959687486,4.24411,2356.3,2355.8,4.24483]
[1727959687699,5.01491307,2356.2,2354.9,5.05205]
[1727959688003,0.906506,2356.5,2355.2,4.24579]
[1727959688004,5.01491307,2355.9,2355.2,4.24579]
[1727959688306,5.01491307,2355.9,2355.4,8.49092]
[1727959688440,5.01491307,2355.9,2355.4,4.24545]
[1727959688747,5.01491307,2355.9,2355.2,4.24581]
[1727959688748,4.24512,2355.7,2355.2,4.24581]
[1727959689151,4.24532,2355.6,2355.1,4.24609]
[1727959689375,4.24512,2355.7,2355.0,4.24617]
[1727959689553,4.24512,2355.7,2354.8,4.24663]
[1727959689554,4.24576,2355.3,2354.8,4.24663]
[1727959689757,0.5783,2355.5,2354.8,0.08492754]
[1727959689956,0.5783,2355.5,2355.2,4.24587]
[1727959690401,0.5783,2355.5,2355.3,4.24566]
[1727959690604,0.5783,2355.8,2355.4,4.24556]
[1727959690760,0.5783,2355.8,2355.4,4.24543]
[1727959691296,0.5783,2355.8,2355.5,4.24537]
[1727959691605,4.24449,2356.0,2355.5,4.24537]
[1727959691606,4.24448,2356.0,2355.5,4.24537]
[1727959691807,4.24448,2356.0,2355.5,8.49065]
[1727959691976,4.82271,2356.1,2355.5,4.24528]
[1727959692303,0.5783,2356.1,2355.5,4.79713921]
[1727959692507,4.2447,2355.9,2355.4,4.669983]
[1727959692664,4.24451,2356.0,2355.6,4.24519]
[1727959692990,4.8226,2356.1,2355.6,8.49027]
[1727959693210,4.8226,2356.1,2355.9,4.24449]
[1727959693211,0.5783,2356.1,2355.9,4.24449]
[1727959693597,0.5783,2356.1,2355.9,8.48905]
[1727959693799,0.5783,2356.1,2355.9,4.24449]
[1727959694167,0.44385748,2356.3,2356.1,4.24429]
[1727959694400,0.44385748,2356.3,2355.9,4.67544579]
[1727959694618,4.68780748,2356.3,2355.8,4.24481]
[1727959694892,4.24438,2356.1,2355.6,4.24511]
[1727959695313,4.24428,2356.2,2355.7,4.24499]
[1727959695604,4.24428,2356.2,2355.8,4.24477]
[1727959696114,0.44385748,2356.3,2355.8,4.31129017]
[1727959696277,0.44385748,2356.3,2355.9,4.24464]
[1727959697501,0.44385748,2356.3,2356.0,4.24443]
[1727959697901,0.44385748,2356.3,2355.9,4.24464]
[1727959698068,4.68779748,2356.3,2355.9,4.24464]
[1727959698874,6.14027454,2356.3,2355.7,4.24487]
[1727959699177,6.14027454,2356.3,2355.8,4.24481]
[1727959699178,0.004,2356.0,2355.8,4.24481]
[1727959699912,4.24516,2355.7,2355.1,4.24602]
[1727959700070,0.5783,2355.5,2355.1,4.24602]
[1727959700269,4.673826,2355.6,2354.7,5.06728]
[1727959700270,0.004,2355.6,2355.3,4.2456]
[1727959700473,0.5783,2355.7,2355.4,4.2455]
[1727959701074,0.004,2355.8,2355.5,0.04415583]
[1727959701300,0.5823,2356.0,2355.5,4.24523]
[1727959701630,0.5823,2356.0,2355.8,4.24475]
[1727959701777,0.004,2356.0,2355.9,4.24466]
[1727959702120,0.004,2356.0,2355.7,4.24501]
[1727959702600,0.5783,2355.9,2355.1,0.7966]
[1727959702800,0.5783,2355.9,2355.6,4.24519]
[1727959703185,4.82298,2355.9,2355.2,0.37966]
[1727959703587,0.004,2356.0,2355.2,0.37966]
[1727959703788,0.004,2356.0,2355.8,4.2448]
[1727959703987,0.004,2356.0,2355.7,4.24487]
[1727959704232,0.004,2356.0,2355.8,4.24475]
[1727959704516,0.004,2356.0,2355.7,4.245]
[1727959704724,4.24525,2355.6,2355.2,4.24584]
[1727959704882,5.098662,2355.6,2355.2,4.24584]
[1727959705095,4.24541,2355.5,2355.1,4.24598]
[1727959705540,4.24541,2355.5,2355.1,8.492]
[1727959705686,4.24541,2355.5,2354.9,0.7912]
[1727959705687,0.5783,2355.4,2355.0,4.24624]
[1727959705928,0.5783,2355.4,2355.1,4.24594]
[1727959706124,0.004,2355.6,2355.4,8.49093]
[1727959706289,0.004,2355.6,2355.5,4.24538]
[1727959706479,0.004,2355.8,2355.6,4.24518]
[1727959706683,4.24891,2355.8,2355.3,4.2456]
[1727959707019,4.24471,2355.9,2355.4,4.24544]
[1727959707189,4.82682,2356.0,2355.6,4.2451]
[1727959708005,0.5823,2356.0,2355.6,4.2451]
[1727959708192,0.5823,2356.0,2355.7,4.24489]
[1727959708628,0.5823,2356.0,2355.4,4.24542]
[1727959708779,5.81105131,2356.0,2355.5,4.24529]
[1727959709203,1.56646131,2356.0,2355.6,4.24509]
[1727959709415,0.5823,2356.0,2355.7,4.24489]
[1727959709924,0.004,2356.0,2355.8,4.24476]
[1727959710128,3.5783,2356.2,2355.4,4.24555]
[1727959710129,0.5783,2356.2,2356.0,4.24447]
[1727959710430,0.5783,2356.2,2356.1,4.2443]
[1727959710796,0.5783,2356.2,2355.9,4.24454]
[1727959711180,0.5783,2356.2,2355.8,4.2447]
[1727959711382,4.24441,2356.1,2355.6,8.49017]
[1727959711683,0.004,2356.0,2355.7,4.24488]
[1727959712025,0.004,2356.0,2355.8,4.24476]
[1727959712424,0.004,2356.0,2355.9,4.24466]
[1727959712583,0.5783,2356.2,2356.0,4.24448]
[1727959713683,0.004,2356.3,2356.0,4.24448]
[1727959713882,0.004,2356.3,2356.1,4.2443]
[1727959714186,0.004,2356.3,2356.0,4.24448]
[1727959714388,4.24796,2356.3,2355.9,4.24464]
[1727959714594,4.2442,2356.2,2355.8,4.24475]
[1727959715385,4.2442,2356.2,2355.7,4.24486]
[1727959715884,0.004,2356.1,2355.9,4.24464]
[1727959716433,0.004,2356.2,2356.0,4.24448]
[1727959718341,0.004,2356.3,2356.1,4.2443]
[1727959720000,0.486591,2356.3,2355.6,0.7616]
[1727959720315,0.486591,2356.3,2354.5,5.58620968]
[1727959720316,9.83798307,2355.9,2355.2,4.24584]
[1727959720518,0.004,2355.8,2355.4,4.24541]
[1727959720957,4.24511,2355.7,2355.3,4.24572]
[1727959721262,0.004,2355.6,2355.3,4.24567]
[1727959721416,0.004,2355.6,2355.4,4.24555]
[1727959722829,4.24925,2355.6,2355.1,4.24607]
[1727959723144,0.004,2355.4,2355.1,4.24607]
[1727959723557,0.004,2355.4,2355.2,4.2459]
[1727959723869,0.004,2355.4,2355.3,4.24574]
[1727959724396,0.004,2355.8,2355.7,4.24502]
[1727959725048,0.5783,2356.0,2355.9,4.24466]
[1727959725366,0.5783,2356.0,2355.6,4.24516]
[1727959725367,0.004,2356.1,2356.0,4.24448]
[1727959725659,0.36998215,2356.1,2356.0,4.24448]
[1727959725819,0.004,2356.2,2355.9,4.24456]
[1727959726017,0.004,2356.2,2356.0,4.2444]
[1727959726722,0.004,2356.2,2355.9,4.24456]
[1727959726919,0.004,2356.2,2355.9,0.0318405]
[1727959727132,0.004,2356.2,2356.1,4.2443]
[1727959727338,0.36998195,2356.2,2355.8,4.24481]